Cogmind - Beta 13 @@@ ROGUE MODE // 2024.04.07 @ 12:58:37 Player: Asterix Result: Destroyed by S-27 Virus with Autogun Performance ------------- Evolutions (1) 500 Regions Visited (6) 1200 Robots Destroyed (27) 135 Value Destroyed (524) 524 Prototype IDs (0) 0 Alien Tech Used (0) 0 Bonus (767) 767 TOTAL SCORE: 3126 Bonus ------- Follower Combat Kills 187 Met Imprinter 300 Was Imprinted 300 Friendly Fire -20 Cogmind --------- Core Integrity 0/400 Matter 300/300 Energy 100/100 System Corruption 0% Temperature Cool (0) Movement Core (50) Location -6/Proximity Caves Parts ------- > --- POWER (2) -------- (None) > --- PROPULSION (2) --- (None) > --- UTILITY (3) ------ Armor Integrity Analyzer > --- WEAPON (2) ------- CR-A16's Pointy Stick > --- INVENTORY (5) ---- Heavy Assault Rifle High-powered Shotgun Missile Launcher Peak State ------------ > --- POWER ------------ (None) > --- PROPULSION ------- (None) > --- UTILITY ---------- Improved Heat Sink Authchip [Armor] Authchip [Weapon] > --- WEAPON ----------- Ripper CR-A16's Pointy Stick > --- INVENTORY -------- Heavy Assault Rifle High-powered Shotgun Missile Launcher [Rating: 19] Favorites ----------- Power Ion Engine Engine Ion Engine Propulsion Improved Treads Treads Improved Treads Leg Aluminum Leg Flight Unit VTOL Module Utility Improved Heat Sink Device Improved Heat Sink Processor Armor Integrity Analyzer Hackware Authchip [Armor] Protection Backup Plating I Weapon CR-A16's Pointy Stick Energy Gun EM Pulse Gun Ballistic Gun High-powered Shotgun Ballistic Cannon Improved Light Cannon Launcher Rocket Launcher Slashing Weapon Ripper Piercing Weapon CR-A16's Pointy Stick Build | -11 -10 -10 -9 -9 -7 -6 ------- Run | Yrd Mat Min Mat Min Zio Pro Slots Evolved 2 | . . . 2 . . . Power 1 | . . . 1 . . . Propulsion . | . . . . . . . Utility 1 | . . . 1 . . . Weapon . | . . . . . . . Parts Attached 28 | 5 8 6 1 3 4 1 Power 1 | 1 . . . . . . Engine 1 | 1 . . . . . . Core . | . . . . . . . Reactor . | . . . . . . . Propulsion 10 | 2 6 2 . . . . Treads 6 | . 4 2 . . . . Leg 2 | 2 . . . . . . Wheel . | . . . . . . . Hover . | . . . . . . . Flight 2 | . 2 . . . . . Utility 7 | . . 2 1 1 2 1 Device 2 | . . . 1 1 . . Storage . | . . . . . . . Processor 1 | . . . . . . 1 Hackware 2 | . . . . . 2 . Protection 2 | . . 2 . . . . Artifact . | . . . . . . . Weapon 10 | 2 2 2 . 2 2 . Energy Gun 2 | 2 . . . . . . Energy Cannon . | . . . . . . . Ballistic Gun 2 | . . 1 . 1 . . Ballistic Cannon 2 | . 2 . . . . . Launcher 2 | . . 1 . 1 . . Special Weapon . | . . . . . . . Impact Weapon . | . . . . . . . Slashing Weapon 1 | . . . . . 1 . Piercing Weapon 1 | . . . . . 1 . Special Melee Weapon . | . . . . . . . Unidentified Prototypes . | . . . . . . . Parts Lost 10 | . . . . 8 . 2 Power 1 | . . . . 1 . . Propulsion 2 | . . . . 2 . . Utility 4 | . . . . 3 . 1 Weapon 3 | . . . . 2 . 1 Highest Loss Streak 8 | . . . . 8 . 2 To Critical Strikes . | . . . . . . . Average Slot Usage (%) 58 | . 90 98 86 67 46 40 Engine 3 | . 14 14 11 7 . . Treads 6 | . 25 28 22 16 . . Device 8 | . . . 9 9 11 7 Hackware 9 | . . . . . 13 8 Protection 6 | . 19 28 22 14 . . Ballistic Gun 7 | . . 10 11 11 8 . Ballistic Cannon 4 | . 22 16 11 7 . . Slashing Weapon 4 | . . . . . 6 7 Piercing Weapon 5 | . . . . . 6 11 Naked Turns . | . . . . . . . Heaviest Build 18 | 9 15 16 18 18 7 7 Greatest Support 46 | 20 46 46 46 46 3 3 Greatest Overweight (x) 2 | . 2 . . 2 2 2 Average Overweight (x) 1 | . . . . . 2 . Largest Inventory Capacity 5 | 5 5 5 5 5 5 5 Average Capacity 5 | 5 5 5 5 5 5 5 Most Carried 5 | 3 5 5 2 3 5 4 Average Carried 2 | . 2 2 1 2 3 3 Final Capacity 5 | 5 5 5 5 5 5 5 Final Carried 3 | . 3 1 2 . 3 3 Class Distribution -------------------- 100% | Mutant Dominant Class ---------------- Mutant | -10/Materials Mutant | -10/Mines Mutant | -9/Materials Mutant | -9/Mines Mutant | -7/Zion Mutant | -6/Proximity Caves Resources | -11 -10 -10 -9 -9 -7 -6 ----------- Run | Yrd Mat Min Mat Min Zio Pro Matter Collected 1010 | 250 284 282 30 69 95 . Remotely . | . . . . . . . Salvage Created 646 | 19 294 193 . 111 . 29 Parts 51 | 2 19 24 . 4 . 2 Haulers Intercepted . | . . . . . . . Recyclers Shooed . | . . . . . . . Parts Field Recycled . | . . . . . . . Retrieved Matter . | . . . . . . . Parts Self-Destructed 2 | . . . . . . 2 Prevented 2 | . . . . . . 2 Kills | -11 -10 -10 -9 -9 -7 -6 ------- Run | Yrd Mat Min Mat Min Zio Pro Combat Hostiles Destroyed 18 | . 7 8 . 2 . 1 Melee 1 | . . . . . . 1 Guns 4 | . 1 2 . 1 . . Cannons 10 | . 6 4 . . . . AOE 3 | . . 2 . 1 . . Classes Destroyed 9 | 1 4 1 . 3 . . Worker 1 | . . 1 . . . . Builder 1 | . . . . 1 . . Tunneler 3 | 1 . 2 . . . . Recycler 4 | . 2 1 . 1 . . Watcher 1 | . 1 . . . . . Swarmer 10 | . 3 6 . . . 1 Grunt 6 | . 4 2 . . . . Demolisher 1 | . . . . 1 . . Assembled 1 | . . . . 1 . . Best Kill Streak 3 | 1 2 3 . 3 . 1 Combat Bots Only 3 | . 2 3 . 2 . 1 Max Kills in Single Turn 1 | 1 1 1 . 1 . 1 Gunslinging . | . . . . . . . Exploded 1 | . . 1 . 1 . . Melee 1 | . . . . . . 1 Uniques/NPCs Destroyed . | . . . . . . . Combat | -11 -10 -10 -9 -9 -7 -6 -------- Run | Yrd Mat Min Mat Min Zio Pro Hostile Shots Fired 171 | . 32 57 2 48 . 32 Missed 42 | . 11 12 1 11 . 7 Damage Taken 1747 | . 188 391 9 793 . 366 Core 464 | . 24 27 . 145 . 268 Absorbed by Shields 100 | . . . 3 97 . . Regen/Repaired (Parts) 60 | . . . . . 60 . Core Remaining (%) 89 | 100 . 79 . . . . Volleys Fired 74 | 7 27 33 2 5 . . Largest 2 | 2 2 2 2 2 . . Hottest 90 | 90 90 78 64 64 . . Shots Fired 143 | 14 54 61 4 10 . . Gun 43 | 14 2 20 2 5 . . Cannon 95 | . 52 39 2 2 . . Launcher 5 | . . 2 . 3 . . Special . | . . . . . . . Kinetic 122 | . 52 59 4 7 . . Thermal 8 | 7 1 . . . . . Explosive 5 | . . 2 . 3 . . Electromagnetic 8 | 7 1 . . . . . Robot Hit Streak 7 | 7 6 3 1 5 . . Robot Miss Streak 8 | 1 7 8 5 3 . . Penetration Max . | . . . . . . . Secondary Targets . | . . . . . . . Shots Hit Robots 64 | 11 20 24 1 6 . 2 Core Hits 32 | 2 10 13 1 5 . 1 Critical Kills . | . . . . . . . Critical Parts Destroyed . | . . . . . . . Critical Strikes 7 | 2 3 1 . . . 1 Burn 2 | 2 . . . . . . Blast 4 | . 3 1 . . . . Impale 1 | . . . . . . 1 Melee Attacks 27 | . . . . . 23 4 Impact . | . . . . . . . Slashing 7 | . . . . . 7 . Piercing 20 | . . . . . 16 4 Sneak Attacks . | . . . . . . . Combat Hostiles . | . . . . . . . Follow-up Attacks . | . . . . . . . Damage Inflicted 1429 | 140 457 510 20 239 . 63 Guns 440 | 140 24 172 . 104 . . Cannons 707 | . 430 257 20 . . . Explosions 216 | . . 81 . 135 . . Melee 63 | . . . . . . 63 Ramming 3 | . 3 . . . . . Kinetic 983 | . 430 429 20 104 . . Thermal 141 | 87 12 42 . . . . Explosive 174 | . . 39 . 135 . . Electromagnetic 65 | 53 12 . . . . . Impact . | . . . . . . . Slashing . | . . . . . . . Piercing 63 | . . . . . . 63 Highest Corruption 5 | . 1 1 . 5 5 . Average Corruption 1 | . 1 1 . 5 5 . Corruption Purged . | . . . . . . . Corruption Blocked . | . . . . . . . Effects 11 | . 2 6 . 1 2 . Message Errors 1 | . . 1 . . . . Matter Fused 3 | . 1 2 . . . . Heat Flow Errors 3 | . . 1 . . 2 . Energy Discharges 1 | . . 1 . . . . Data Loss (minor) 1 | . . 1 . . . . Data Loss (major) 2 | . 1 . . 1 . . Overload Shots . | . . . . . . . Overflow Damage 39 | . . 4 . 19 . 16 Projectiles 4 | . . 4 . . . . Explosions 19 | . . . . 19 . . Melee 16 | . . . . . . 16 Knockbacks 7 | . 4 2 1 . . . Impact . | . . . . . . . Kinetic 7 | . 4 2 1 . . . Secondary . | . . . . . . . Self-Inflicted Damage 10 | . . 10 . . . . Shots 1 | . . 1 . . . . Rammed 2 | . 2 . . . . . Targets Rammed 2 | . 2 . . . . . Kicked . | . . . . . . . Crushed . | . . . . . . . Highest Temperature 288 | 120 288 265 16 12 223 . Average Temperature 68 | 56 79 64 8 5 111 . Received Heat Transfer 165 | . 24 57 4 80 . . Effects 1 | . 1 . . . . . Energy Bleed 1 | . 1 . . . . . Siege Activations . | . . . . . . . Robots Corrupted . | . . . . . . . Combat Hostiles . | . . . . . . . Parts Fried . | . . . . . . . Impact Corruptions . | . . . . . . . Robots Melted . | . . . . . . . Combat Hostiles . | . . . . . . . Parts Melted . | . . . . . . . Heat Transferred 494 | 407 37 50 . . . . Parts Sabotaged . | . . . . . . . Parts Stolen . | . . . . . . . Parts Stripped . | . . . . . . . Power Chain Reactions . | . . . . . . . Alert | -11 -10 -10 -9 -9 -7 -6 ------- Run | Yrd Mat Min Mat Min Zio Pro Peak Influence 229 | 5 229 197 25 143 . . Initial 45 | . 3 45 . 9 . . Average 85 | . 81 104 10 88 . . Maximum Alert Level 1 | . 1 . . . . . Low Security (%) 96 | 100 88 100 100 100 . . Level 1 3 | . 11 . . . . . Level 2 . | . . . . . . . Level 3 . | . . . . . . . Level 4 . | . . . . . . . Level 5 . | . . . . . . . High Security . | . . . . . . . Max Security . | . . . . . . . Squads Dispatched 3 | . 2 1 . . . . Investigation 2 | . 1 1 . . . . Extermination . | . . . . . . . Reinforcement 1 | . 1 . . . . . Assault . | . . . . . . . Garrison . | . . . . . . . Intercept . | . . . . . . . Searches Triggered . | . . . . . . . Construction Impeded . | . . . . . . . Haulers Reinforced . | . . . . . . . Active Scanning Responses . | . . . . . . . Cargo Convoy Interrupts . | . . . . . . . Stealth | -11 -10 -10 -9 -9 -7 -6 --------- Run | Yrd Mat Min Mat Min Zio Pro Distress Signals 2 | . 1 . . 1 . . Communications Jammed . | . . . . . . . Distress Signals . | . . . . . . . Times Spotted 47 | . 9 9 1 17 . 11 Peak Tracking Total 10 | . 4 3 1 10 . 5 Tactical Retreats 3 | . . . . 1 . 2 Traps | -11 -10 -10 -9 -9 -7 -6 ------- Run | Yrd Mat Min Mat Min Zio Pro Traps Triggered . | . . . . . . . Indirectly . | . . . . . . . Trap Hack Attempts . | . . . . . . . Triggered . | . . . . . . . Disarmed . | . . . . . . . Reprogrammed . | . . . . . . . Reused . | . . . . . . . Traps Extracted . | . . . . . . . Installed . | . . . . . . . Triggered . | . . . . . . . Machines | -11 -10 -10 -9 -9 -7 -6 ---------- Run | Yrd Mat Min Mat Min Zio Pro Machines Disabled 7 | . 4 1 . 2 . . Max in Single Turn 2 | . 1 1 . 2 . . Machines Repaired . | . . . . . . . Machines Dismantled . | . . . . . . . Machines Sabotaged . | . . . . . . . Overloaded Fab Kills . | . . . . . . . Hacking | -11 -10 -10 -9 -9 -7 -6 --------- Run | Yrd Mat Min Mat Min Zio Pro Machines Accessed 5 | . 3 1 1 . . . Terminals 3 | . 2 . 1 . . . Fabricators . | . . . . . . . Repair Stations 1 | . 1 . . . . . Recycling Units . | . . . . . . . Scanalyzers . | . . . . . . . Garrison Access . | . . . . . . . Total Hacks 18 | . 14 1 3 . . . Successful 9 | . 7 1 1 . . . Failed 9 | . 7 . 2 . . . Catastrophic 2 | . 2 . . . . . Database Lockouts . | . . . . . . . Manual 5 | . . . . . 5 . Terminals 14 | . 11 . 3 . . . Fabricators . | . . . . . . . Repair Stations 3 | . 3 . . . . . Recycling Units . | . . . . . . . Scanalyzers . | . . . . . . . Garrison Access . | . . . . . . . Terminal Hacks 8 | . 6 1 1 . . . Record 4 | . 3 . 1 . . . Robot Analysis 1 | . 1 . . . . . Open Door 1 | . . 1 . . . . Recall Reinforcements 1 | . 1 . . . . . Zone Layout 1 | . 1 . . . . . Fabricator Hacks . | . . . . . . . Repair Station Hacks 1 | . 1 . . . . . Refit 1 | . 1 . . . . . Recycling Unit Hacks . | . . . . . . . Scanalyzer . | . . . . . . . Garrison Access Hacks . | . . . . . . . Unauthorized Hacks . | . . . . . . . Terminals . | . . . . . . . Fabricators . | . . . . . . . Repair Stations . | . . . . . . . Recycling Units . | . . . . . . . Scanalyzers . | . . . . . . . Garrison Access . | . . . . . . . Data Cores Recovered . | . . . . . . . Used . | . . . . . . . Hacking Detections 4 | . 3 . 1 . . . Full Trace Events 4 | . 3 . 1 . . . Feedback Events 1 | . 1 . . . . . Corruption 1 | . 1 . . . . . Feedback Blocked . | . . . . . . . Robot Schematics Acquired 2 | . . . . . 2 . Robots Built . | . . . . . . . Authchips . | . . . . . . . Time . | . . . . . . . Total Robot Build Rating . | . . . . . . . Part Schematics Acquired 14 | . . . . . 14 . Parts Built . | . . . . . . . Authchips . | . . . . . . . Time . | . . . . . . . Total Part Build Rating . | . . . . . . . Parts Repaired . | . . . . . . . Time . | . . . . . . . Parts Recycled . | . . . . . . . Recycled Matter . | . . . . . . . Retrieved Matter . | . . . . . . . Retrieved Components . | . . . . . . . Parts Scanalyzed . | . . . . . . . Part Schematics Acquired . | . . . . . . . Parts Damaged . | . . . . . . . Bothacking | -11 -10 -10 -9 -9 -7 -6 ------------ Run | Yrd Mat Min Mat Min Zio Pro Used RIF Installer . | . . . . . . . Robots Hacked . | . . . . . . . Non-combat . | . . . . . . . Combat . | . . . . . . . Robot Hacks Applied . | . . . . . . . Relay Couplers Released . | . . . . . . . Fabnet Peak Effective % . | . . . . . . . Robots Rewired . | . . . . . . . Allies Hacked . | . . . . . . . Hacks Repelled . | . . . . . . . Allies | -11 -10 -10 -9 -9 -7 -6 -------- Run | Yrd Mat Min Mat Min Zio Pro Total Allies 12 | . . 4 . . 8 . Largest Group 8 | . . 3 3 3 8 5 Highest-Rated Group 252 | . . 40 40 40 252 157 Highest-Rated Ally 39 | . . 31 16 16 39 38 Total Orders . | . . . . . . . Ally Attacks 50 | . . 5 4 18 . 23 Total Damage 608 | . . 64 35 189 . 320 Kills 12 | . . 1 1 5 . 5 Allies Corrupted . | . . . . . . . Allies Melted . | . . . . . . . Intel | -11 -10 -10 -9 -9 -7 -6 ------- Run | Yrd Mat Min Mat Min Zio Pro Robot Analysis Total 1 | . 1 . . . . . Derelict Logs Recovered 5 | . . 1 . 1 1 2 Drone Launches . | . . . . . . . Drone Recoveries . | . . . . . . . Exploration | -11 -10 -10 -9 -9 -7 -6 ------------- Run | Yrd Mat Min Mat Min Zio Pro Turns Passed 7097 | 71 627 908 134 232 4848 277 Spaces Moved 4415 | 43 331 498 79 139 3061 264 Core 3380 | 15 2 . . 38 3061 264 Treads 975 | . 297 498 79 101 . . Legs 59 | 28 31 . . . . . Wheels . | . . . . . . . Hover . | . . . . . . . Flight 1 | . 1 . . . . . Fastest Speed 50 | 50 120 160 160 50 150 50 Average Speed 147 | 95 156 160 160 140 150 94 Slowest Speed 195 | 120 195 160 160 160 150 150 Overloaded Moves . | . . . . . . . Propulsion Burnouts . | . . . . . . . Robots Hopped 5 | . . . . . 5 . Cave-ins Triggered 2 | . . . . 2 . . Exploration Rate (%) 46 | 3 60 93 11 37 93 27 Regions Visited 6 Branch Regions 4 Pre-discovered Areas 2 | . . . . . 2 . Known Exits Taken 1 | . . . 1 . . . Unknown Exits Taken 5 | 1 1 1 . 1 1 . Scrap Searched 4 | . . 1 . . 2 1 Spaces Dug 5 | . . . . . 5 . Terrain Destroyed 64 | . 4 30 . 25 5 . Melee 5 | . . . . . 5 . Projectile 10 | . 4 6 . . . . AOE 49 | . . 24 . 25 . . Terrain Rammed . | . . . . . . . Walls Destroyed . | . . . . . . . Machines Disabled . | . . . . . . . Actions | -11 -10 -10 -9 -9 -7 -6 --------- Run | Yrd Mat Min Mat Min Zio Pro Total 4819 | 59 392 553 83 165 3282 285 Wait 223 | . . . . 18 192 13 Move 4399 | 42 330 497 78 138 3050 264 Hop 5 | . . . . . 5 . Pick Up 38 | 5 13 7 2 1 9 1 Fast Attach . | . . . . . . . Attach 28 | 5 8 6 1 3 4 1 Detach 5 | . 2 1 . . 2 . Swap . | . . . . . . . Drop 25 | . 10 9 . . 4 2 Fire 74 | 7 27 33 2 5 . . Melee 20 | . . . . . 16 4 Ram . | . . . . . . . Kick . | . . . . . . . Crush 2 | . 2 . . . . . Escape Stasis . | . . . . . . . Rewire . | . . . . . . . Trap . | . . . . . . . Miscellaneous . | . . . . . . . Route ------- -11/Scrapyard -10/Materials (discovered 5 exits: *Mat x3 / *Min x2) -10/Mines (discovered 3 exits: *Mat x2 / [*Sub]) -9/Materials (discovered 2 exits: *Min x2) -9/Mines (discovered 3 exits: [*Mat x2] / *Zio) -7/Zion -6/Proximity Caves History --------- Turn | Location | Event 18 | -11/Scrapyard | Discovered new exit (range 16) 72 | -11/Scrapyard | Entered Materials 231 | -10/Materials | Discovered new exit (range 7) 285 | -10/Materials | Discovered new exit (range 9) 288 | -10/Materials | Discovered new exit (range 14) 303 | -10/Materials | Build established: Mutant 411 | -10/Materials | Discovered new exit (range 13) 522 | -10/Materials | Discovered new exit (range 8) 699 | -10/Materials | Entered Mines 779 | -10/Mines | Met a Derelict shopkeep closing up shop 829 | -10/Mines | Received a Rocket Launcher from a helpful Derelict 1095 | -10/Mines | Discovered new exit (range 11) 1249 | -10/Mines | Discovered new exit (range 12) 1280 | -10/Mines | Learned 4 Materials zone layouts 1287 | -10/Mines | Received a Mining Laser from a helpful Derelict 1591 | -10/Mines | Discovered new exit (range 3) 1599 | -10/Mines | Assisted by bots powering up and referring to "LRC-V3" 1607 | -10/Mines | Entered Materials 1607 | -9/Materials | Accompanied by 3 allies 1607 | -9/Materials | Evolved 2 slots: Power x1, Utility x1 1608 | -9/Materials | Identified exit to Mines 1741 | -9/Materials | Entered Mines 1741 | -9/Mines | Accompanied by 3 allies 1758 | -9/Mines | A Derelict revealed a hidden shortcut to a safe place 1829 | -9/Mines | Learned location of 1 exit from Materials 1831 | -9/Mines | Discovered new exit (range 9) 1887 | -9/Mines | Assembled infested the area 1916 | -9/Mines | Crushed by falling debris 1919 | -9/Mines | Crushed by falling debris 1950 | -9/Mines | Lost 8 parts (1p2n3u2w) 1971 | -9/Mines | Discovered new exit (range 7) 1973 | -9/Mines | Entered Zion 2041 | -7/Zion | System corruption cleaned by Quarantine Array 2265 | -7/Zion | Received a visual enhancement algorithm 2364 | -7/Zion | Learned location of Quarantine (-2) 2590 | -7/Zion | Discovered new exit (range 15) 2776 | -7/Zion | Found CR-A16's Pointy Stick 3463 | -7/Zion | Imprinted 3465 | -7/Zion | Declared Zion's savior 3582 | -7/Zion | Gained Derelict followers 3847 | -7/Zion | Visited the Megawrench Repair Shop 3847 | -7/Zion | Megawrench repaired 2 parts 6821 | -7/Zion | Entered Proximity Caves 6821 | -6/Proximity Caves | Accompanied by 5 allies 6839 | -6/Proximity Caves | Learned location of 1 exit from Factory 6973 | -6/Proximity Caves | Learned 4 Factory zone layouts 7003 | -6/Proximity Caves | Core integrity fell below 50% 7096 | -6/Proximity Caves | Core integrity fell below 20% 7098 | -6/Proximity Caves | Destroyed by S-27 Virus with Autogun Last Messages --------------- Found Armor Integrity Analyzer. Found 16 Matter. Discarded Authchip [Weapon]. Discarded Authchip [Armor]. Acquired Armor Integrity Analyzer. Acquired derelict log, extracted data. Data stored: Factory zone layouts (x4). Slug penetrates N1-ZK0(g). N1-ZK0(g) destroyed. S-27 Virus destroyed. Slug penetrates Wall. Imp. Heat Sink destroyed. S-27 Virus destroyed. S-27 Virus suffers critical hit (Impale). Destroyed Lgt. Nuclear Core. Slug penetrates Wall. Ripper destroyed. Slug penetrates Wall. AQ-5F5(M) suffers critical hit (Destroy). S-27 Virus destroyed. Map ----- +----------------------------------------------------+ | ?????????????????????????????????????????????????? | | #####????????????????????????????????????????????? | | %#######??????????????????????????????????????? | | #??????????????????????????????????????? | | ## #???????????????#####??????????????????? | | ##### ##??????????????## ##?????????????????? | | ?????#####??????????????## ##????????????????? | | #???????????????????????# ##???????????????? | | #???######?????????????## ????????????????? | | #??## ###?????????### ?????????????????? | | ??## ##??????? ??????????????????? | | ### #?????? ## #??????????????????? | | ##????% ### #??????????????????? | | ## #### ### ##????????? ??? | | ### % #???# ######## ?? | | ## !%% ##????# ?? | | ## ### =#####?##### ?? | | # ## #?# #?????# #### ?? | | ## ## #?# #?????# #???????????????? | | ### ## #? #?????# #### ######???????????????? | | ??# ### #?????# =#??###????????????????????? | | ?# #####?????#%!#?????????????????????????? | | # #?????????#!%##????????????????????????? | | # ## #?????????# #????????????????????????? | | # #### ##?????##### ####?????????????????????? | | ###???####??????# *%@ #?????????????????????? | | ######?####?????# s #?????????????????????? | | ### ##????# ### ss #?????????????????????? | | ##???# #### ##?????????????????????? | | ##??# ### #??????????????????????? | | #??# ## ##??????????????????????? | | # ##### ### #???????????????????????? | | ## ### #???????????????????????? | | ?###### #???????????????????????? | | ??????# ###########???????????????????????? | | ??????# ### ##?????????????????????????????????? | | ??????###?#####??????????????????????????????????? | | ?????????????????????????????????????????????????? | | ?????????????????????????????????????????????????? | | ?????????????????????????????????????????????????? | | ?????????????????????????????????????????????????? | | ?????????????????????????????????????????????????? | | ?????????????????????????????????????????????????? | | ?????????????????????????????????????????????????? | | ?????????????????????????????????????????????????? | | ?????????????????????????????????????????????????? | | ?????????????????????????????????????????????????? | | ?????????????????????????????????????????????????? | | ?????????????????????????????????????????????????? | | ?????????????????????????????????????????????????? | +----------------------------------------------------+ Best States ------------- Heat Dissipation 42 Energy Generation 10 Energy Capacity 250 Matter Stores 300 Matter Capacity 300 Sight Range 16 Terrain Scan Density 10 Armor Coverage 230 Evasion (%) 55 Armor Integrity Analysis 30 Recoil Reduction 2 Authchip Count 2 Item Schematics ----------------- Xenon Bombardment Thruster | -7/Zion | Archive Lgt. Fission Core | -7/Zion | Archive Phase Cannon | -7/Zion | Archive Flak Gun | -7/Zion | Archive Mak. Cloaking Device | -7/Zion | Archive Mak. Spear | -7/Zion | Archive Imp. Component Analysis Suite | -7/Zion | Archive Hvy. Plasma Cannon | -7/Zion | Archive Hvy. Ion Cannon | -7/Zion | Archive Force Booster | -7/Zion | Archive Imp. Proton Missile Launcher | -7/Zion | Archive Gauss Cannon | -7/Zion | Archive Imp. Field Recycling Unit | -7/Zion | Archive Imp. Weapon Cycler | -7/Zion | Archive Robot Schematics ------------------ K-01 Serf | -7/Zion | Archive S-27 Virus | -7/Zion | Archive Fabricated ------------ Nothing Alien Tech Used ----------------- None Achievements -------------- I Survived The Infestation Robot Respite The More The Merrier The One Tourist Unlikely Earthworm Challenges ------------ None Game ------ Seed TransportDamperStorage Manual? 0 Play Time 00:51:43 Cumulative 3.7 hours Start 2024.04.07 @ 12:08:52 End 2024.04.07 @ 12:58:37 Sessions 1 Manual Loads 0 Difficulty Rogue Special Mode None Game No. 6 Rogue 6 Adventurer 0 Explorer 0 Win Type - Total 0 Types 0/0/0/0/0/0/0/0/0 Lore% 6 Gallery% 8 Achievement% 9 Wizard Run 0 Options --------- Layout 1 ASCII 0 Keyboard 0 Movement Mouse Keybinds 0 Fullscreen 1 Font 24/Smallcaps Map View 50x35 Zoom Use 0% Tactical HUD 0 Map Filters NONE Filters NONE Steam 1 RUN: d0e29d38-2ce9-40ab-891c-34aa6ec91b6a